bitfinex-derivatives/quotes_SOLF0:USTF0_20250808
["timestamp","ask_amount","ask_price","bid_price","bid_amount"]
[1754614403214,4.80601422,174.45,174.41,3.21]
[1754614403417,8.10601422,174.45,174.43,3.21]
[1754614403614,3.3,174.44,174.41,117.29]
[1754614403815,4.80601422,174.45,174.44,3.21]
[1754614405219,8.10601422,174.45,174.44,3.21]
[1754614406118,4.80601422,174.45,174.44,3.21]
[1754614406720,8.10601422,174.45,174.44,3.21]
[1754614406921,8.10601422,174.45,174.43,3.21]
[1754614407313,4.80601422,174.45,174.42,3.21]
[1754614407523,4.80601422,174.45,174.44,3.21]
[1754614407922,4.80601422,174.45,174.41,114.08]
[1754614407923,8.10601422,174.45,174.42,3.21]
[1754614408225,4.80601422,174.45,174.44,3.21]
[1754614408420,8.10601422,174.45,174.44,3.21]
[1754614408618,3.3,174.59,174.44,3.21]
[1754614408921,4.80601422,174.45,174.44,3.21]
[1754614409313,4.80601422,174.45,174.44,9.00343845]
[1754614410123,8.10601422,174.45,174.44,9.00343845]
[1754614410628,8.10601422,174.45,174.41,114.08]
[1754614410629,3.3,174.44,174.41,117.29]
[1754614410829,3.25721111,174.42,174.41,117.29]
[1754614411121,3.25721111,174.42,174.41,123.08700906]
[1754614411726,6.42721111,174.42,174.41,119.87700906]
[1754614412830,3.25721111,174.42,174.41,123.00700906]
[1754614413027,6.42721111,174.42,174.41,123.00700906]
[1754614413530,6.42721111,174.42,174.41,119.87700906]
[1754614413728,6.42721111,174.42,174.41,114.08]
[1754614414132,6.42721111,174.42,174.41,104.08]
[1754614414724,3.25721111,174.42,174.41,107.21]
[1754614416735,6.42721111,174.42,174.41,107.21]
[1754614417233,3.25721111,174.42,174.41,107.21]
[1754614417933,3.25721111,174.42,174.41,113.08391109]
[1754614418336,6.42721111,174.42,174.41,113.08391109]
[1754614418537,6.42721111,174.42,174.41,109.95391109]
[1754614418931,6.42721111,174.42,174.41,104.08]
[1754614419132,6.42721111,174.42,174.41,107.21]
[1754614419431,3.25721111,174.42,174.41,113.08566756]
[1754614422139,3.17,174.47,174.42,3.13]
[1754614422438,3.25721111,174.43,174.42,3.13]
[1754614422735,3.25721111,174.43,174.42,9.0097099]
[1754614422936,6.42721111,174.43,174.42,5.8797099]
[1754614423137,6.42721111,174.43,174.41,104.08]
[1754614423334,3.17,174.42,174.41,104.08]
[1754614423539,3.25721111,174.43,174.42,3.13]
[1754614423837,6.42721111,174.43,174.42,5.92352344]
[1754614424231,3.25721111,174.43,174.41,104.08]
[1754614424428,3.25721111,174.43,174.39,3.13]
[1754614424642,6.42721111,174.4,174.39,3.13]
[1754614424835,6.42721111,174.4,174.38,113.68]
[1754614425147,6.42721111,174.4,174.39,3.13]
[1754614425528,3.25721111,174.4,174.39,3.13]
[1754614426533,3.25721111,174.42,174.39,3.13]
[1754614427443,3.25721111,174.51,174.39,3.13]
[1754614427642,6.42721111,174.42,174.4,3.13]
[1754614427836,3.25721111,174.42,174.4,3.13]
[1754614428140,3.17,174.41,174.4,3.13]
[1754614428340,3.25721111,174.42,174.39,3.13]
[1754614428741,3.25721111,174.45,174.39,3.13]
[1754614428938,3.25721111,174.51,174.39,3.13]
[1754614428939,3.17,174.48,174.39,3.13]
[1754614429245,3.25721111,174.45,174.39,3.13]
[1754614429541,3.17,174.5,174.39,11.17307173]
[1754614429843,3.25721111,174.47,174.4,3.13]
[1754614430038,3.17,174.54,174.42,3.13]
[1754614430236,3.25721111,174.51,174.44,3.13]
[1754614430645,3.25721111,174.51,174.44,7.91586062]
[1754614430944,3.25721111,174.51,174.45,3.13]
[1754614433641,3.25721111,174.53,174.45,8.04307173]
[1754614433846,3.25721111,174.56,174.48,3.13]
[1754614434046,3.25721111,174.56,174.5,3.13]
[1754614436144,3.25721111,174.56,174.51,5.86170192]
[1754614436344,3.25721111,174.56,174.53,3.13]
[1754614436545,3.25721111,174.56,174.55,3.13]
[1754614436846,3.25721111,174.56,174.55,8.99170192]
[1754614437352,3.25721111,174.56,174.55,3.13]
[1754614438251,6.42721111,174.56,174.55,3.13]
[1754614438750,3.17,174.55,174.5,3.13]
[1754614439052,3.25721111,174.53,174.52,3.13]
[1754614439238,6.42721111,174.55,174.53,3.13]
[1754614440148,3.25721111,174.55,174.53,3.13]
[1754614440350,3.17,174.54,174.53,3.13]
[1754614440549,3.17,174.54,174.49,113.48]
[1754614440746,3.17,174.52,174.5,8.9779325]
[1754614441054,3.25721111,174.53,174.51,8.9779325]
[1754614441250,6.42721111,174.53,174.51,3.13]
[1754614441443,3.25721111,174.53,174.52,3.13]
[1754614441645,3.25721111,174.55,174.52,5.84648903]
[1754614441846,3.25721111,174.55,174.54,3.22]
[1754614442046,6.56721111,174.55,174.49,113.48]
[1754614442246,6.56721111,174.55,174.53,3.22]
[1754614442850,3.25721111,174.55,174.5,3.22]
[1754614443153,3.25721111,174.53,174.52,3.22]
[1754614443353,3.25721111,174.55,174.52,3.22]
[1754614444352,3.25721111,174.57,174.52,3.22]
[1754614444555,6.56721111,174.57,174.52,3.22]
[1754614445151,3.25721111,174.57,174.52,3.22]
[1754614446357,3.25721111,174.58,174.52,3.22]
[1754614447153,3.25721111,174.57,174.52,3.22]
[1754614447560,6.56721111,174.57,174.52,3.22]
[1754614450155,3.31,174.56,174.52,3.22]
[1754614450659,3.31,174.54,174.5,3.22]
[1754614450862,3.31,174.53,174.52,3.22]
[1754614451555,3.25721111,174.55,174.5,3.22]
[1754614451755,3.25721111,174.55,174.51,5.83657364]
[1754614451956,3.25721111,174.55,174.53,3.22]
[1754614452256,3.25721111,174.55,174.54,3.22]
[1754614453257,3.31,174.61,174.55,3.22]
[1754614453454,3.25721111,174.62,174.55,6.47721111]
[1754614453653,3.25721111,174.62,174.55,3.25721111]
[1754614453857,3.25721111,174.62,174.56,3.22]
[1754614454862,3.25721111,174.65,174.56,3.22]
[1754614455060,3.25721111,174.65,174.58,3.22]
[1754614455259,3.25721111,174.65,174.6,3.22]
[1754614456464,6.56721111,174.65,174.6,3.22]
[1754614456661,6.56721111,174.63,174.61,3.22]
[1754614457466,3.25721111,174.65,174.6,3.22]
[1754614457674,3.31,174.68,174.6,3.22]
[1754614458069,3.25721111,174.66,174.6,3.22]
[1754614461069,3.25721111,174.68,174.6,3.22]
[1754614461371,3.25721111,174.68,174.61,3.22]
[1754614461372,6.56721111,174.68,174.61,3.22]
[1754614462976,3.25721111,174.68,174.61,3.22]
[1754614465878,3.31,174.73,174.63,3.22]
[1754614466074,3.25721111,174.69,174.65,3.22]
[1754614466981,6.56721111,174.7,174.65,3.22]
[1754614467475,3.25721111,174.68,174.65,3.22]
[1754614467679,3.31,174.66,174.65,3.22]
[1754614468079,3.31,174.67,174.66,3.22]
[1754614468680,3.31,174.67,174.64,116.0]
[1754614468982,3.31,174.65,174.64,112.78]
[1754614469182,3.31,174.65,174.64,116.0]
[1754614469375,3.31,174.66,174.64,116.0]
[1754614469571,3.31,174.66,174.65,3.22]
[1754614469772,3.31,174.66,174.64,116.0]
[1754614469974,3.25721111,174.67,174.64,112.78]
[1754614470175,3.31,174.65,174.64,116.0]
[1754614470685,3.25721111,174.65,174.61,3.22]
[1754614470886,6.56721111,174.63,174.62,5.78192491]
[1754614471183,3.31,174.62,174.57,112.66]
[1754614471386,3.31,174.62,174.58,9.00750326]
[1754614471583,3.25721111,174.69,174.58,9.00750326]
[1754614471584,3.25721111,174.59,174.58,3.22]
[1754614471780,6.55721111,174.59,174.58,9.00760083]
[1754614472179,3.3,174.58,174.54,3.26]
[1754614472479,3.25721111,174.56,174.55,121.6683575]
[1754614472783,6.55721111,174.56,174.55,118.4083575]
[1754614473180,6.55721111,174.56,174.55,121.6683575]
[1754614473377,6.55721111,174.61,174.56,3.26]
[1754614473580,3.3,174.6,174.57,5.7883575]
[1754614473781,3.3,174.59,174.58,5.7883575]
[1754614473984,3.25721111,174.59,174.58,9.0483575]
[1754614474185,3.25721111,174.59,174.58,13.84121027]
[1754614474389,3.25721111,174.59,174.58,9.0483575]
[1754614475683,3.25721111,174.59,174.58,5.7883575]
[1754614475684,6.55721111,174.59,174.58,5.7883575]
[1754614475889,3.25721111,174.59,174.58,9.0483575]
[1754614476782,6.55721111,174.59,174.58,13.87044926]
[1754614476983,6.55721111,174.59,174.57,4.82237668]
[1754614477288,3.3,174.58,174.57,4.82237668]
[1754614477790,3.3,174.58,174.57,8.08237668]
[1754614478184,3.25721111,174.59,174.57,4.82237668]
[1754614478390,6.55721111,174.58,174.53,6.43817304]
[1754614478581,3.25721111,174.53,174.52,115.8]
[1754614478884,3.25721111,174.53,174.52,115.78]
[1754614480190,6.55721111,174.53,174.52,115.78]
[1754614480389,6.55721111,174.53,174.52,112.52]
[1754614480599,6.55721111,174.53,174.5,3.26]
[1754614480884,6.55721111,174.51,174.5,3.26]
[1754614481286,3.25721111,174.51,174.49,112.5]
[1754614481491,3.3,174.5,174.49,112.5]
[1754614483891,3.3,174.5,174.49,115.76]
[1754614484186,3.25721111,174.51,174.5,3.26]
[1754614484588,3.3,174.5,174.45,3.26]
[1754614484789,3.25721111,174.46,174.45,3.26]
[1754614485094,6.55721111,174.46,174.45,3.26]
[1754614485494,3.25721111,174.46,174.45,3.26]
[1754614485900,6.55721111,174.46,174.45,3.26]
[1754614486496,3.25721111,174.46,174.45,3.26]
[1754614488591,3.3,174.59,174.45,3.26]
[1754614488788,3.25721111,174.47,174.45,3.26]
[1754614488995,3.25721111,174.49,174.45,3.26]
[1754614489699,3.25721111,174.51,174.45,3.26]
[1754614489901,3.25721111,174.53,174.46,3.25721111]
[1754614490200,3.25721111,174.53,174.47,3.26]
[1754614490402,6.55721111,174.51,174.49,3.26]
[1754614490902,3.25721111,174.51,174.49,3.26]
[1754614491802,3.25721111,174.51,174.5,3.26]
[1754614492008,6.55721111,174.51,174.48,112.42]
[1754614492302,3.3,174.5,174.49,3.26]
[1754614492902,6.55721111,174.51,174.49,3.26]
[1754614493205,6.55721111,174.51,174.5,3.26]
[1754614493400,3.25721111,174.51,174.5,3.26]
[1754614497806,3.25721111,174.53,174.5,3.26]
[1754614499409,3.25721111,174.55,174.5,3.26]
[1754614499608,6.55721111,174.55,174.5,3.26]
[1754614499909,3.25721111,174.55,174.5,3.26]
[1754614500611,3.3,174.54,174.5,3.26]
[1754614500809,3.25721111,174.55,174.5,3.26]
[1754614501611,6.32721111,174.55,174.5,3.26]
[1754614501912,3.07,174.54,174.5,3.26]
[1754614503606,3.25721111,174.55,174.5,3.26]
[1754614503811,6.32721111,174.55,174.5,3.26]
[1754614504220,3.25721111,174.57,174.51,3.09]
[1754614504716,3.25721111,174.6,174.52,3.09]
[1754614504917,3.25721111,174.6,174.54,3.09]
[1754614507217,6.32721111,174.6,174.54,3.09]
[1754614507511,3.25721111,174.6,174.54,3.09]
[1754614509015,3.25721111,174.62,174.54,3.09]
[1754614509616,6.32721111,174.62,174.54,3.09]
[1754614509817,3.25721111,174.6,174.54,3.09]
[1754614510617,3.25721111,174.6,174.54,6.34721111]
[1754614510914,3.25721111,174.6,174.55,3.09]
[1754614511118,6.32721111,174.6,174.55,3.09]
[1754614511520,6.32721111,174.6,174.54,3.09]
[1754614511719,3.25721111,174.6,174.54,3.09]
[1754614512319,3.25721111,174.6,174.54,235.0]
[1754614512520,3.25721111,174.6,174.55,3.09]
[1754614513522,6.32721111,174.6,174.55,3.09]
[1754614514720,3.25721111,174.6,174.55,3.09]
[1754614515118,6.32721111,174.64,174.55,3.25721111]
[1754614515418,6.32721111,174.64,174.56,3.09]
[1754614515620,6.32721111,174.64,174.58,3.09]
[1754614515918,3.07,174.63,174.58,3.09]
[1754614516118,6.32721111,174.64,174.58,3.09]
[1754614516620,3.07,174.63,174.58,3.09]
[1754614516822,3.07,174.61,174.58,3.09]
[1754614517021,3.07,174.61,174.59,3.09]
[1754614517521,3.07,174.61,174.6,3.09]
[1754614519224,3.07,174.63,174.6,3.09]
[1754614519424,3.07,174.62,174.61,115.05]
[1754614520726,3.25721111,174.69,174.61,111.96]
[1754614520926,6.32721111,174.63,174.62,3.09]
[1754614521926,3.25721111,174.63,174.62,3.09]
[1754614522118,6.32721111,174.65,174.63,3.09]
[1754614523225,3.25721111,174.65,174.61,111.96]
[1754614523426,3.25721111,174.67,174.61,111.96]
[1754614523620,3.07,174.66,174.65,3.09]
[1754614524123,3.07,174.66,174.61,111.96]
[1754614524427,3.07,174.62,174.61,111.84]
[1754614525123,3.07,174.62,174.61,114.93]
[1754614525321,3.07,174.62,174.6,111.84]
[1754614525526,6.32721111,174.61,174.6,111.84]
[1754614525722,3.25721111,174.69,174.61,3.09]
[1754614525922,3.25721111,174.64,174.61,3.09]
[1754614526127,3.07,174.63,174.62,3.09]
[1754614526326,3.25721111,174.64,174.6,111.84]
[1754614526526,3.07,174.62,174.61,3.09]
[1754614526726,3.25721111,174.64,174.6,111.84]
[1754614526928,3.07,174.63,174.62,3.09]
[1754614527229,3.07,174.62,174.61,3.09]
[1754614529029,3.07,174.63,174.61,3.09]
[1754614530222,3.07,174.63,174.6,111.84]
[1754614530428,3.07,174.63,174.62,3.09]
[1754614531028,3.25721111,174.64,174.6,111.84]
[1754614531029,3.07,174.62,174.61,3.09]
[1754614532030,3.03,174.63,174.6,111.84]
[1754614532226,3.25721111,174.62,174.6,111.84]
[1754614532424,3.03,174.61,174.6,111.84]
[1754614533330,3.03,174.61,174.6,3.36]
[1754614535140,3.03,174.61,174.59,111.7]
[1754614535437,6.28721111,174.6,174.59,115.06]
[1754614535635,3.03,174.61,174.59,115.06]
[1754614535832,6.28721111,174.61,174.6,3.36]
[1754614537538,3.25721111,174.61,174.6,3.36]
[1754614538837,3.25721111,174.62,174.6,3.36]
[1754614540033,3.25721111,174.62,174.59,111.7]
[1754614540238,3.25721111,174.62,174.61,3.36]
[1754614544238,6.28721111,174.62,174.61,3.36]
[1754614544637,6.28721111,174.62,174.59,111.7]
[1754614544841,6.28721111,174.6,174.59,115.06]
[1754614545642,6.28721111,174.6,174.59,111.7]
[1754614546143,3.03,174.59,174.56,111.48]
[1754614546344,6.28721111,174.57,174.56,111.48]
[1754614546942,3.03,174.55,174.54,3.36]
[1754614547140,3.25721111,174.55,174.53,111.48]
[1754614547344,3.03,174.54,174.53,114.84]
[1754614547643,6.28721111,174.55,174.54,3.36]
[1754614548043,6.28721111,174.55,174.53,111.48]
[1754614548044,3.03,174.56,174.55,3.36]
[1754614548244,6.28721111,174.56,174.55,3.36]
[1754614549041,3.25721111,174.56,174.55,3.36]
[1754614550244,3.25721111,174.58,174.55,3.36]
[1754614551638,3.25721111,174.6,174.55,3.36]
[1754614553144,6.28721111,174.6,174.55,3.36]
[1754614553341,3.25721111,174.6,174.55,3.36]
[1754614553644,6.28721111,174.62,174.55,3.36]
[1754614553851,3.25721111,174.62,174.55,238.36]
[1754614554145,6.28721111,174.62,174.56,3.36]
[1754614554348,3.03,174.61,174.58,3.36]
[1754614554545,3.25721111,174.6,174.55,238.36]
[1754614554734,3.25721111,174.56,174.54,3.36]
[1754614554936,6.28721111,174.56,174.55,3.36]
[1754614555446,3.03,174.56,174.55,3.36]
[1754614555640,3.25721111,174.57,174.55,3.36]
[1754614555947,3.25721111,174.57,174.54,3.36]
[1754614556146,3.03,174.56,174.55,3.36]
[1754614558447,3.25721111,174.57,174.55,3.36]
[1754614558646,6.28721111,174.57,174.56,3.36]
[1754614560742,6.28721111,174.57,174.53,111.36]
[1754614560937,3.03,174.56,174.53,111.36]
[1754614561149,3.03,174.56,174.55,3.36]
[1754614561343,3.03,174.56,174.54,3.36]
[1754614561648,3.25721111,174.55,174.54,3.36]
[1754614561845,6.51721111,174.55,174.53,111.36]
[1754614562047,6.51721111,174.55,174.54,3.19]
[1754614562251,3.25721111,174.55,174.54,3.19]
[1754614562647,6.51721111,174.55,174.54,3.19]
[1754614562854,3.26,174.54,174.53,111.36]
[1754614563553,3.26,174.54,174.53,114.55]
[1754614564150,3.26,174.54,174.53,111.36]
[1754614564355,3.26,174.54,174.49,114.41]
[1754614564649,3.25721111,174.5,174.4,388.41721111]
[1754614564854,6.51721111,174.45,174.41,3.19]
[1754614565049,6.51721111,174.45,174.43,3.19]
[1754614565256,3.26,174.44,174.43,3.19]
[1754614565450,3.25721111,174.45,174.43,3.19]
[1754614566151,3.25721111,174.45,174.42,111.2]
[1754614566349,3.25721111,174.45,174.43,3.19]
[1754614566556,6.51721111,174.45,174.44,3.19]
[1754614567152,3.25721111,174.45,174.44,3.19]
[1754614567355,3.25721111,174.47,174.44,3.19]
[1754614567654,6.51721111,174.47,174.45,3.19]
[1754614568052,3.25721111,174.47,174.45,3.19]
[1754614568254,3.26,174.46,174.43,3.19]
[1754614568458,3.25721111,174.44,174.42,111.2]
[1754614568651,3.26,174.43,174.42,114.39]
[1754614569548,3.25721111,174.44,174.43,3.19]
[1754614570557,6.51721111,174.44,174.43,3.19]
[1754614570749,3.25721111,174.44,174.43,3.19]
[1754614570950,3.25721111,174.44,174.42,111.2]
[1754614571152,3.26,174.43,174.42,111.2]
[1754614571559,3.25721111,174.44,174.42,111.2]
[1754614571759,6.51721111,174.44,174.42,3.19]
[1754614572059,6.51721111,174.44,174.43,3.19]
[1754614572560,6.51721111,174.44,174.41,114.33]
[1754614572760,3.26,174.43,174.41,111.14]
[1754614573060,3.26,174.43,174.42,3.19]
[1754614573459,3.25721111,174.44,174.41,114.33]
[1754614573663,3.25721111,174.42,174.41,114.33]
[1754614573959,6.51721111,174.44,174.42,3.19]
[1754614574153,3.26,174.43,174.41,111.14]
[1754614574350,6.51721111,174.42,174.41,111.14]
[1754614574554,6.51721111,174.42,174.39,3.19]
[1754614574754,3.26,174.41,174.4,114.29]
[1754614574955,6.51721111,174.41,174.4,114.29]
[1754614575559,3.25721111,174.41,174.4,114.29]
[1754614578159,3.26,174.43,174.4,114.29]
[1754614578364,3.25721111,174.43,174.41,3.19]
[1754614578863,3.26,174.42,174.41,3.19]
[1754614582167,3.25721111,174.43,174.41,3.19]
[1754614582463,6.51721111,174.43,174.42,3.19]
[1754614582763,3.25721111,174.43,174.42,3.19]
[1754614584062,6.51721111,174.43,174.42,3.19]
[1754614584262,3.25721111,174.43,174.42,3.19]
[1754614586670,3.26,174.42,174.41,3.19]
[1754614588669,6.51721111,174.43,174.42,3.19]
[1754614588875,3.25721111,174.43,174.42,3.19]
[1754614589770,6.51721111,174.43,174.42,3.19]
[1754614590875,3.26,174.42,174.41,3.19]
[1754614593672,3.25721111,174.43,174.4,111.1]
[1754614593877,6.53721111,174.41,174.4,114.29]
[1754614594580,6.53721111,174.41,174.4,3.19]
[1754614595073,6.53721111,174.41,174.37,3.19]
[1754614595272,3.25721111,174.39,174.37,3.19]
[1754614596679,3.25721111,174.44,174.37,235.0]
[1754614596879,3.25721111,174.46,174.38,3.25721111]
[1754614597079,3.25721111,174.44,174.39,3.19]
[1754614597680,3.25721111,174.42,174.39,3.19]
[1754614598383,3.28,174.45,174.39,3.19]
[1754614598583,3.28,174.49,174.39,3.19]
[1754614598782,3.25721111,174.52,174.44,3.19]
[1754614598988,3.25721111,174.53,174.46,3.19]
[1754614599684,6.53721111,174.51,174.47,110.76]
[1754614599983,3.25721111,174.51,174.48,3.19]
[1754614601285,6.53721111,174.51,174.48,3.19]
[1754614601484,6.53721111,174.51,174.47,113.95]
[1754614601690,3.25721111,174.49,174.45,110.72]
[1754614601987,6.53721111,174.49,174.46,3.19]
[1754614602385,3.25721111,174.49,174.46,3.19]
[1754614602585,3.25721111,174.51,174.46,3.19]
[1754614602784,3.25721111,174.51,174.47,110.7]
[1754614602985,3.25721111,174.51,174.48,3.19]
[1754614603185,3.25721111,174.53,174.48,3.19]
[1754614603786,3.25721111,174.51,174.48,3.19]
[1754614603992,6.53721111,174.51,174.48,3.19]
[1754614604190,6.53721111,174.51,174.49,3.19]
[1754614604684,3.25721111,174.51,174.49,3.19]
[1754614604891,3.28,174.5,174.45,110.66]
[1754614605083,3.28,174.5,174.45,3.19]
[1754614605285,3.25721111,174.49,174.45,3.19]
[1754614606692,6.53721111,174.49,174.45,3.19]
[1754614607292,3.25721111,174.49,174.45,3.19]
[1754614607493,3.25721111,174.5,174.45,3.19]
[1754614609000,3.25721111,174.52,174.45,3.19]
[1754614610296,6.53721111,174.52,174.45,3.19]
[1754614611297,3.28,174.51,174.45,3.19]
[1754614611799,6.53721111,174.5,174.45,3.19]
[1754614612198,3.25721111,174.5,174.45,3.19]
[1754614613204,6.53721111,174.52,174.45,3.19]
[1754614614201,3.28,174.51,174.45,3.19]
[1754614614401,3.25721111,174.5,174.45,3.19]
[1754614614600,3.28,174.49,174.45,3.19]
[1754614614793,6.53721111,174.48,174.46,3.19]
[1754614614999,3.28,174.47,174.46,3.19]
[1754614615200,3.28,174.47,174.44,3.19]
[1754614615401,3.28,174.44,174.42,3.19]
[1754614615705,3.25721111,174.43,174.41,3.19]
[1754614615905,3.28,174.42,174.41,3.19]
[1754614616611,3.28,174.41,174.4,3.19]
[1754614616807,6.53721111,174.41,174.4,3.19]
[1754614617309,3.25721111,174.41,174.4,3.19]
[1754614617910,3.28,174.43,174.4,3.19]
[1754614618118,3.25721111,174.42,174.4,3.19]
[1754614618814,3.25721111,174.44,174.4,3.19]
[1754614620110,3.25721111,174.45,174.4,3.19]
[1754614620314,3.25721111,174.47,174.4,3.19]
[1754614620808,6.53721111,174.47,174.4,3.19]
[1754614621203,3.25721111,174.45,174.39,3.19]
[1754614621411,6.53721111,174.45,174.39,3.19]
[1754614621913,3.25721111,174.45,174.39,3.19]
[1754614623515,3.23,174.44,174.41,3.1]
[1754614623914,3.23,174.44,174.42,3.1]
[1754614624215,3.25721111,174.45,174.43,3.1]
[1754614624512,3.25721111,174.45,174.41,3.1]
[1754614626119,3.23,174.44,174.41,3.1]
[1754614626313,3.23,174.44,174.42,3.1]
[1754614626519,3.23,174.43,174.42,3.1]
[1754614627214,3.23,174.46,174.42,3.1]
[1754614627415,3.23,174.45,174.4,110.4]
[1754614627616,6.48721111,174.46,174.41,3.1]
[1754614627816,3.23,174.45,174.42,3.1]
[1754614628018,3.23,174.44,174.42,3.1]
[1754614628314,3.23,174.44,174.4,110.4]
[1754614628520,3.25721111,174.46,174.43,3.1]
[1754614628816,3.25721111,174.44,174.42,3.1]
[1754614629016,6.48721111,174.44,174.43,3.1]
[1754614629417,3.25721111,174.44,174.43,3.1]
[1754614629920,6.48721111,174.44,174.43,3.1]
[1754614630320,6.48721111,174.44,174.4,110.4]
[1754614630519,3.23,174.43,174.41,3.1]
[1754614630720,3.25721111,174.42,174.37,3.1]
[1754614630915,3.23,174.4,174.38,110.32]
[1754614631116,6.48721111,174.42,174.4,3.1]
[1754614631316,3.23,174.41,174.39,3.1]
[1754614631516,6.48721111,174.4,174.39,3.1]
[1754614632617,3.25721111,174.4,174.39,3.1]
[1754614635816,6.48721111,174.4,174.37,113.36]
[1754614636019,6.48721111,174.4,174.38,3.1]
[1754614636520,3.25721111,174.4,174.39,3.1]
[1754614636821,6.48721111,174.4,174.39,3.1]
[1754614637223,3.23,174.39,174.38,3.1]
[1754614637422,3.23,174.39,174.37,110.26]
[1754614637612,3.25721111,174.38,174.37,113.36]
[1754614637817,3.25721111,174.38,174.37,3.1]
[1754614639318,6.48721111,174.38,174.36,110.2]
[1754614639616,3.23,174.37,174.36,110.2]
[1754614639824,3.25721111,174.38,174.36,113.3]
[1754614640018,3.23,174.37,174.36,110.2]
[1754614640218,3.23,174.37,174.34,3.1]
[1754614640419,3.23,174.36,174.35,3.1]
[1754614640717,3.23,174.35,174.29,385.34]
[1754614641023,3.23,174.34,174.32,110.18]
[1754614641718,3.23,174.41,174.32,110.18]
[1754614641923,3.25721111,174.34,174.32,110.18]
[1754614642921,3.25721111,174.34,174.33,3.1]
[1754614643123,3.25721111,174.36,174.33,3.1]
[1754614643317,3.25721111,174.42,174.33,3.1]
[1754614643318,3.25721111,174.34,174.33,3.1]
[1754614644023,3.25721111,174.36,174.33,3.1]
[1754614644819,3.25721111,174.38,174.33,3.1]
[1754614645321,6.48721111,174.38,174.33,3.1]
[1754614647022,3.23,174.38,174.33,3.1]
[1754614647218,3.25721111,174.4,174.33,3.1]
[1754614647420,6.48721111,174.4,174.33,3.1]
[1754614647821,3.23,174.39,174.33,3.1]
[1754614648013,3.25721111,174.36,174.34,3.1]
[1754614648224,3.23,174.35,174.34,3.1]
[1754614648420,3.23,174.35,174.34,113.18]
[1754614648724,3.25721111,174.37,174.35,3.1]
[1754614649218,3.25721111,174.39,174.35,3.1]
[1754614649424,6.48721111,174.39,174.35,3.1]
[1754614649621,3.25721111,174.39,174.35,3.1]
[1754614649825,3.23,174.38,174.35,3.1]
[1754614650324,3.25721111,174.39,174.35,3.1]
[1754614650525,6.48721111,174.39,174.35,3.1]
[1754614650726,3.23,174.39,174.35,3.1]
[1754614650925,6.48721111,174.4,174.35,3.1]
[1754614651523,3.25721111,174.4,174.35,3.1]
[1754614651729,3.13,174.39,174.38,3.15]
[1754614652035,3.25721111,174.4,174.38,110.06]
[1754614652231,3.13,174.39,174.38,110.06]
[1754614652724,3.13,174.39,174.35,3.15]
[1754614653026,3.13,174.39,174.34,235.0]
[1754614653027,3.13,174.37,174.36,113.17]
[1754614653324,3.13,174.41,174.37,3.15]
[1754614653530,3.13,174.38,174.37,3.15]
[1754614653826,3.13,174.38,174.36,110.02]
[1754614654026,3.13,174.37,174.36,113.17]
[1754614654535,3.25721111,174.39,174.37,3.15]
[1754614654831,3.13,174.4,174.39,3.15]